[Event "32nd Panamerican Youth 2022"]
[Site "Montevideo"]
[Date "2022.07.02"]
[Round "9.8"]
[White "Reyes Perez, Aracelly"]
[Black "Herrera Rodriguez, Flavia del Valle"]
[Result "1-0"]
[ECO "C50"]
[WhiteElo "1238"]
[BlackElo "1068"]
[Annotator "NA RC"]
[PlyCount "121"]
[EventDate "2022.06.26"]
[EventType "swiss"]
[EventCountry "URU"]
[SourceTitle "playchess.com"]
[Source "ChessBase"]
[SourceQuality "1"]
[TimeControl "5400+30"]

1. e4 {[%emt 0:01:13]} e5 {[%emt 0:00:12]} 2. Nf3 {[%emt 0:00:09]} Nc6 {[%emt 0:00:08]} 3. Bc4 {[%emt 0:00:08]} Bc5 {[%emt 0:00:23]} 4. d3 {[%emt 0:02:33]} Nf6 {[%emt 0:00:25]} 5. c3 {[%emt 0:00:21]} d6 {[%emt 0:00:46]} 6. O-O {[%emt 0:00:26]} Be6 {[%emt 0:00:29]} 7. Bb3 {[%emt 0:00:30]} O-O {[%emt 0:00:39]} 8. Bc2 {[%emt 0:01:32]} a6 {[%emt 0:00:50]} 9. d4 {[%emt 0:04:45]} Bc4 {[%emt 0:01:21]} 10. Re1 {[%emt 0:02:03]} exd4 {[%emt 0:00:32]} 11. cxd4 {[%emt 0:00:07]} Bb6 {[%emt 0:00:43]} 12. b3 {[%emt 0:05:03]} Nxd4 {[%emt 0:12:28]} 13. Nxd4 {[%emt 0:00:09]} Be6 {[%emt 0:03:07]} 14. Bb2 {[%emt 0:07:36]} Re8 {[%emt 0:00:36]} 15. Nxe6 {[%emt 0:03:09]} fxe6 {[%emt 0:00:33]} 16. Nc3 {[%emt 0:02:55]} e5 {[%emt 0:13:19]} 17. Nd5 {[%emt 0:03:10]} Nxd5 {[%emt 0:07:22]} 18. Qxd5+ {[%emt 0:01:59]} Kh8 {[%emt 0:03:47]} 19. Rad1 {[%emt 0:10:40]} Rf8 {[%emt 0:01:54]} 20. Rf1 {[%emt 0:00:21]} Qh4 {[%emt 0:02:19]} 21. Qd2 {[%emt 0:00:10]} Rf6 {[%emt 0:02:04]} 22. Bxe5 {[%emt 0:07:59]} Bxf2+ {[%emt 0:04:35]} 23. Rxf2 {[%emt 0:00:07]} Qxf2+ {[%emt 0:00:43]} 24. Qxf2 {[%emt 0:00:04]} Rxf2 {[%emt 0:00:14]} 25. Kxf2 {[%emt 0:00:05]} dxe5 {[%emt 0:00:06]} 26. Rd7 {[%emt 0:00:14]} Rc8 {[%emt 0:01:02]} 27. Bd3 {[%emt 0:00:08]} Kg8 {[%emt 0:00:20]} 28. Bc4+ {[%emt 0:00:04]} Kf8 {[%emt 0:00:16]} 29. Rf7+ {[%emt 0:00:12]} Ke8 {[%emt 0:00:17]} 30. Rxg7 {[%emt 0:00:11]} Kd8 {[%emt 0:00:27]} 31. Rxh7 {[%emt 0:00:29]} c6 {[%emt 0:06:39]} 32. Rh8+ {[%emt 0:00:03]} Kc7 {[%emt 0:02:06]} 33. Rxc8+ {[%emt 0:00:02]} Kxc8 {[%emt 0:00:36]} 34. Be6+ {[%emt 0:00:00]} Kd8 {[%emt 0:00:20]} 35. Bf5 {[%emt 0:00:02]} Kc7 36. g4 {[%emt 0:00:02]} Kd6 {[%emt 0:00:36]} 37. g5 {[%emt 0:00:01]} Ke7 {[%emt 0:00:08]} 38. g6 {[%emt 0:00:02]} b6 {[%emt 0:00:24]} 39. Ke3 {[%emt 0:00:02]} c5 {[%emt 0:00:15]} 40. h4 {[%emt 0:00:01]} Kf8 {[%emt 0:00:43]} 41. h5 {[%emt 0:00:01]} Kg7 {[%emt 0:00:08]} 42. Kd3 {[%emt 0:00:03]} b5 {[%emt 0:00:48]} 43. Bc8 {[%emt 0:00:01]} Kh6 {[%emt 0:03:33]} 44. Bxa6 {[%emt 0:00:03]} b4 {[%emt 0:00:24]} 45. Kc4 {[%emt 0:00:05]} Kxh5 {[%emt 0:00:09]} 46. g7 {[%emt 0:00:02]} Kh6 47. g8=Q {[%emt 0:00:06]} Kh5 {[%emt 0:00:40]} 48. Qd5 {[%emt 0:00:03]} Kh4 {[%emt 0:01:17]} 49. Bc8 Kg3 {[%emt 0:03:59]} 50. Qg8+ {[%emt 0:00:20]} Kf3 {[%emt 0:00:20]} 51. Qg4+ {[%emt 0:00:01]} Ke3 52. Kxc5 {[%emt 0:02:06]} Kf2 {[%emt 0:12:09]} 53. Qf5+ {[%emt 0:00:05]} Ke3 {[%emt 0:00:56]} 54. Qxe5 {[%emt 0:00:07]} Kf3 {[%emt 0:00:14]} 55. Qf6+ {[%emt 0:00:04]} Ke3 {[%emt 0:00:32]} 56. e5 {[%emt 0:00:07]} Kd2 57. Qf2+ Kc1 58. e6 {[%emt 0:00:22]} Kb1 {[%emt 0:00:21]} 59. e7 {[%emt 0:00:11]} Ka1 {[%emt 0:00:10]} 60. e8=Q {[%emt 0:00:13]} Kb1 {[%emt 0:00:48]} 61. Qee1# {[%emt 0:00:03]} 1-0

[Event "32nd Panamerican Youth 2022"]
[Site "Montevideo"]
[Date "2022.07.02"]
[Round "9.9"]
[White "Fiorito, Francisco"]
[Black "Paris, Adolfo"]
[Result "1-0"]
[ECO "C01"]
[WhiteElo "2268"]
[BlackElo "1640"]
[Annotator "TA"]
[PlyCount "139"]
[EventDate "2022.06.26"]
[EventType "swiss"]
[EventCountry "URU"]
[SourceTitle "playchess.com"]
[Source "ChessBase"]
[SourceQuality "1"]
[TimeControl "5400+30"]

{[%evp 9,139,18,10,26,259,255,284,277,282,274,279,199,200,177,266,262,284,285,256,241,245,245,316,320,343,347,376,374,368,290,479,307,306,291,320,320,327,324,333,334,322,321,339,335,337,333,365,278,289,296,300,296,297,283,413,405,407,400,403,376,388,355,389,335,418,325,374,331,354,355,443,424,512,528,724,720,681,652,1587,1587,1587,1587,1587,1587,1576,1460,1432,641,1233,950,947,893,930,930,919,0,847,820,910,0,854,0,633,991,607,645,1083,996,1573,1547,1170,685,1801,1739,1533,1393,3180,2512,29954,29956,5410,4906,6187,9926,2224,1888,29982,29983,29983,29984,29984,29985]} 1. e4 {[%emt 0:00:02]} e6 {[%emt 0:00:03]} 2. d4 {[%emt 0:00:06]} d5 {[%emt 0:00:05]} 3. exd5 {[%emt 0:00:02]} exd5 {[%emt 0:00:07]} 4. Nf3 {[%emt 0:00:06]} Nc6 {[%emt 0:00:11]} 5. Bb5 {[%emt 0:00:04]} Bd6 {[%emt 0:00:18]} 6. c4 {[%emt 0:00:09] C01: French: Exchange Variation.} Nge7 $2 {[%emt 0:03:46]} (6... dxc4 $11 7. Nc3 Nf6) 7. c5 $18 {[%emt 0:00:13] [#]} O-O $146 {[%emt 0:01:17]} ({Predecessor:} 7... Bxh2 8. Nxh2 O-O 9. O-O Nf5 10. Bxc6 bxc6 11. Be3 Re8 12. Qd3 a5 13. Re1 Rb8 {1-0 (40) Gheorghiu,C (2283)-Kashlinskaya,A (2494) Chess.com INT 2020}) 8. cxd6 {[%emt 0:00:06] White has a decisive advantage.} Qxd6 {[%emt 0:00:12]} 9. O-O {[%emt 0:00:24]} Bg4 {[%emt 0:00:28]} 10. Bxc6 {[%emt 0:01:14]} Nxc6 {[%emt 0:00:08]} 11. Be3 {[%emt 0:01:11]} Qg6 {[%emt 0:01:49]} (11... f5 {might work better.} 12. Nc3 f4) 12. Nbd2 {[%emt 0:02:29][%cal Bb1d2,Bd2f3,Bf3e5][%mdl 32]} Bh3 {[%emt 0:01:18][%csl Gh3][%cal Rg6g2] [#]} 13. Nh4 {[%emt 0:00:53]} Qf6 {[%emt 0:00:19]} 14. Qf3 {[%emt 0:00:19]} Qxh4 {[%emt 0:02:25]} 15. Qxh3 {[%emt 0:00:10]} Qf6 {[%emt 0:00:16]} 16. Nf3 {[%emt 0:02:53]} Nb4 {[%emt 0:02:14]} 17. Ne5 {[%emt 0:02:21]} Rfe8 {[%emt 0:01:32]} 18. Rfc1 {[%emt 0:00:35]} Qe7 {[%emt 0:01:29]} 19. Qd7 {[%emt 0:01:27]} f6 $2 {[%emt 0:01:19]} (19... c6 20. Qxe7 Rxe7) 20. Qxe7 {[%emt 0:00:49]} Rxe7 {[%emt 0:00:08]} 21. Nf3 {[%emt 0:00:08]} Rae8 {[%emt 0:00:51]} 22. h4 {[%emt 0:00:25]} Kf7 {[%emt 0:02:37]} 23. a3 {[%emt 0:00:30]} Nc6 {[%emt 0:00:24][%cal Bb4c6,Bc6a7,Ba7c8,Bc8b6,Bb6c4][%mdl 32]} 24. Rc5 {[%emt 0:00:08]} Rd7 {[%emt 0:01:15]} 25. Rac1 {[%emt 0:00:31]} a6 {[%emt 0:00:48]} 26. b4 {[%emt 0:00:12]} Ree7 {[%emt 0:00:26]} 27. g3 {[%emt 0:00:49]} h6 {[%emt 0:01:14]} 28. Rb1 {[%emt 0:00:22]} Na7 {[%emt 0:01:43]} 29. a4 {[%emt 0:00:34][%cal Ba3a4,Ba4a5][%mdl 32]} g5 {[%emt 0:00:21]} 30. Kg2 {[%emt 0:00:28]} ({Don't play} 30. hxg5 hxg5 31. Bd2 c6 $18) 30... Nc8 {[%emt 0:01:57]} 31. Rh1 {[%emt 0:01:00]} ({Don't do} 31. hxg5 hxg5 32. Ra1 Nb6 $18) 31... g4 {[%emt 0:00:43]} (31... Nb6 $142 32. hxg5 hxg5) 32. Ne1 {[%emt 0:00:21]} Nb6 {[%emt 0:00:41]} 33. Rc2 {[%emt 0:03:34]} Kg7 {[%emt 0:01:54]} 34. a5 {[%emt 0:00:52]} Nc4 {[%emt 0:00:25]} 35. Rc3 {[%emt 0:00:39]} Re4 {[%emt 0:00:48]} 36. Nc2 {[%emt 0:00:18]} Rde7 {[%emt 0:01:11]} 37. Ra1 {[%emt 0:00:08]} c6 {[%emt 0:01:03]} 38. Re1 {[%emt 0:00:58]} R4e6 {[%emt 0:02:31]} 39. Kf1 {[%emt 0:00:33]} f5 {[%emt 0:01:47]} 40. Bf4 {[%emt 0:01:09]} Re4 {[%emt 0:01:30]} 41. Rxe4 {[%emt 0:00:16]} fxe4 {[%emt 0:00:25]} 42. Ne3 {[%emt 0:00:50]} Nxe3+ {[%emt 0:01:23]} 43. fxe3 {[%emt 0:00:06][%mdl 4096] Endgame KRB-KR} ({Not} 43. Rxe3 Rf7 44. Ke2 Kg6 $18) 43... h5 {[%emt 0:00:51]} 44. Ke2 {[%emt 0:00:04]} Kf7 {[%emt 0:00:51]} 45. Rc1 {[%emt 0:00:03]} Ke6 {[%emt 0:00:58]} 46. Rf1 {[%emt 0:00:04]} Rf7 {[%emt 0:00:05]} 47. Kd2 {[%emt 0:00:04]} Kd7 {[%emt 0:00:46]} 48. Kc3 {[%emt 0:00:04]} (48. Rc1 $142 Rf6 49. Kc2) 48... Rf8 {[%emt 0:00:47]} 49. Rf2 {[%emt 0:00:50]} Rf7 {[%emt 0:00:13]} 50. Kb3 {[%emt 0:00:09]} Rf8 {[%emt 0:00:34]} 51. Rc2 {[%emt 0:00:05]} Rh8 {[%emt 0:04:41]} 52. Rf2 {[%emt 0:00:12]} Rf8 {[%emt 0:00:10]} 53. Ra2 {[%emt 0:00:04]} Rc8 {[%emt 0:02:35]} 54. Rc2 $2 {[%emt 0:01:31]} (54. Kc3 $18 Ra8 55. b5 cxb5 56. Kb3) 54... Ra8 $2 {[%emt 0:04:21][%mdl 8192]} (54... Rh8 $11 55. Rc1 Rf8) 55. Rf2 {[%emt 0:04:39]} Rf8 {[%emt 0:00:30]} 56. Kc2 {[%emt 0:00:05]} Ke6 {[%emt 0:01:24]} 57. Kd1 {[%emt 0:00:05] [#] And now Ke1 would win.} Rf7 {[%emt 0:00:25]} 58. Ke1 {[%emt 0:00:04]} Rf5 {[%emt 0:06:21]} 59. Be5 {[%emt 0:04:24]} Rf3 {[%emt 0:17:07]} 60. Bf4 {[%emt 0:00:08]} Kd7 {[%emt 0:05:02]} 61. Ra2 {[%emt 0:00:28]} Kc8 {[%emt 0:01:36]} 62. Ke2 {[%emt 0:00:05]} Kd8 {[%emt 0:05:43]} 63. b5 {[%emt 0:02:12] Threatening mate with bxa6.} axb5 {[%emt 0:00:15]} 64. a6 {[%emt 0:00:04]} bxa6 {[%emt 0:00:06]} 65. Rxa6 {[%emt 0:00:05]} Kd7 {[%emt 0:00:09]} 66. Ra7+ {[%emt 0:00:03]} (66. Rb6 $142 Kd8 67. Rxc6) 66... Kd8 {[%emt 0:00:08]} 67. Rb7 {[%emt 0:00:59]} c5 {[%emt 0:02:12]} 68. Rxb5 {[%emt 0:00:06] White mates.} cxd4 {[%emt 0:00:12]} 69. Rxd5+ {[%emt 0:00:04]} Ke7 {[%emt 0:00:45]} 70. Rxd4 {Black got outplayed after the opening.  Weighted Error Value: White=0.19 (very precise) /Black=0.43} 1-0

[Event "32nd Panamerican Youth 2022"]
[Site "Montevideo"]
[Date "2022.07.02"]
[Round "9.9"]
[White "Monroy Lopez, Gustavo Adolfo"]
[Black "Tang, Benjamin"]
[Result "*"]
[ECO "C01"]
[WhiteElo "1427"]
[BlackElo "1707"]
[Annotator "NA RC"]
[PlyCount "23"]
[EventDate "2022.06.26"]
[EventType "swiss"]
[EventCountry "URU"]
[SourceTitle "playchess.com"]
[Source "ChessBase"]
[SourceQuality "1"]
[TimeControl "5400+30"]

1. e4 {[%emt 0:00:02]} e6 {[%emt 0:00:03]} 2. d4 {[%emt 0:00:06]} d5 {[%emt 0:00:05]} 3. exd5 {[%emt 0:00:02]} exd5 {[%emt 0:00:07]} 4. Nf3 {[%emt 0:00:06]} Nc6 {[%emt 0:00:11]} 5. Bb5 {[%emt 0:00:04]} Bd6 {[%emt 0:00:18]} 6. c4 {[%emt 0:00:09]} Nge7 {[%emt 0:03:46]} 7. c5 {[%emt 0:00:13]} O-O {[%emt 0:01:17]} 8. cxd6 {[%emt 0:00:06]} Qxd6 {[%emt 0:00:12]} 9. O-O {[%emt 0:00:24]} Bg4 {[%emt 0:00:28]} 10. Bxc6 {[%emt 0:01:14]} Nxc6 {[%emt 0:00:08]} 11. Be3 {[%emt 0:01:11]} Qg6 {[%emt 0:01:49]} 12. Nbd2 {[%emt 0:02:29]} *

[Event "32nd Panamerican Youth 2022"]
[Site "Montevideo"]
[Date "2022.07.02"]
[Round "9.10"]
[White "Garzon Camelo, Andres Santiago"]
[Black "Marrujo Pardo, Mauricio Emmanuel"]
[Result "0-1"]
[ECO "C55"]
[WhiteElo "1824"]
[BlackElo "2049"]
[Annotator "ChessBase"]
[PlyCount "76"]
[EventDate "2022.06.26"]
[EventType "swiss"]
[EventCountry "URU"]
[SourceTitle "playchess.com"]
[Source "ChessBase"]
[SourceQuality "1"]
[TimeControl "5400+30"]

1. e4 {[%emt 0:00:13]} e5 {[%emt 0:00:02]} 2. Nf3 {[%emt 0:01:13]} Nc6 {[%emt 0:00:06]} 3. Bc4 {[%emt 0:00:15]} Nf6 {[%emt 0:00:06]} 4. d3 {[%emt 0:00:13]} h6 {[%emt 0:03:24]} 5. Nc3 {[%emt 0:01:27]} d6 {[%emt 0:00:01]} 6. h3 {[%emt 0:00:23]} Be6 {[%emt 0:00:07]} 7. Bxe6 {[%emt 0:00:54]} fxe6 {[%emt 0:00:03]} 8. d4 {[%emt 0:00:51]} exd4 {[%emt 0:00:01]} 9. Nxd4 {[%emt 0:00:11]} Nxd4 {[%emt 0:00:24]} 10. Qxd4 {[%emt 0:00:13]} e5 {[%emt 0:00:02]} 11. Qc4 {[%emt 0:00:32]} Qd7 {[%emt 0:00:22]} 12. Be3 {[%emt 0:00:17]} Qf7 {[%emt 0:17:33]} 13. Qd3 {[%emt 0:00:55]} c6 {[%emt 0:05:48]} 14. f4 {[%emt 0:00:48]} Be7 {[%emt 0:03:50]} 15. O-O {[%emt 0:05:20]} O-O {[%emt 0:00:29]} 16. fxe5 {[%emt 0:00:45]} dxe5 {[%emt 0:00:02]} 17. Rf5 {[%emt 0:00:20]} Qe6 {[%emt 0:00:52]} 18. a3 {[%emt 0:03:13]} b6 {[%emt 0:10:00]} 19. Raf1 {[%emt 0:00:35]} Rf7 {[%emt 0:00:52]} 20. Ne2 {[%emt 0:00:58]} Rd8 {[%emt 0:02:40]} 21. Qa6 {[%emt 0:00:28]} Rdf8 {[%emt 0:01:06]} 22. Ng3 {[%emt 0:01:06]} Bd6 {[%emt 0:17:06]} 23. R5f3 {[%emt 0:01:00]} Kh7 {[%emt 0:02:54]} 24. Qa4 {[%emt 0:01:45]} b5 {[%emt 0:03:21]} 25. Qa6 {[%emt 0:00:57]} Qc4 {[%emt 0:00:10]} 26. b3 {[%emt 0:01:42]} Qxc2 {[%emt 0:00:01]} 27. Rc1 {[%emt 0:00:23]} Qb2 {[%emt 0:04:26]} 28. Rxc6 {[%emt 0:00:51]} Nxe4 {[%emt 0:02:15]} 29. Nxe4 {[%emt 0:04:49]} Rxf3 {[%emt 0:00:07]} 30. gxf3 {[%emt 0:00:54]} Rxf3 {[%emt 0:00:09]} 31. Nd2 {[%emt 0:11:58]} Rxe3 {[%emt 0:00:11]} 32. Rxd6 {[%emt 0:00:32]} Qc1+ {[%emt 0:00:01]} 33. Nf1 {[%emt 0:00:31]} Rg3+ {[%emt 0:00:02]} 34. Kh2 {[%emt 0:00:16]} Rg5 {[%emt 0:00:01]} 35. Rxh6+ {[%emt 0:07:58]} gxh6 {[%emt 0:00:06]} 36. Qb7+ {[%emt 0:00:08]} Rg7 {[%emt 0:00:05]} 37. Qe4+ {[%emt 0:00:10]} Kh8 {[%emt 0:00:03]} 38. Qa8+ {[%emt 0:01:04]} Rg8 {[%emt 0:02:10]} 0-1

[Event "32nd Panamerican Youth 2022"]
[Site "Montevideo"]
[Date "2022.07.02"]
[Round "9.10"]
[White "Brito Carrascal, Isabela"]
[Black "Chen, Rachel Ruoxuan"]
[Result "*"]
[ECO "C55"]
[WhiteElo "1599"]
[BlackElo "1614"]
[Annotator "NA RC"]
[PlyCount "23"]
[EventDate "2022.06.26"]
[EventType "swiss"]
[EventCountry "URU"]
[SourceTitle "playchess.com"]
[Source "ChessBase"]
[SourceQuality "1"]
[TimeControl "5400+30"]

1. e4 {[%emt 0:00:13]} e5 {[%emt 0:00:02]} 2. Nf3 {[%emt 0:01:13]} Nc6 {[%emt 0:00:06]} 3. Bc4 {[%emt 0:00:15]} Nf6 {[%emt 0:00:06]} 4. d3 {[%emt 0:00:13]} h6 {[%emt 0:03:24]} 5. Nc3 {[%emt 0:01:27]} d6 {[%emt 0:00:01]} 6. h3 {[%emt 0:00:23]} Be6 {[%emt 0:00:07]} 7. Bxe6 {[%emt 0:00:54]} fxe6 {[%emt 0:00:03]} 8. d4 {[%emt 0:00:51]} exd4 {[%emt 0:00:01]} 9. Nxd4 {[%emt 0:00:11]} Nxd4 {[%emt 0:00:24]} 10. Qxd4 {[%emt 0:00:13]} e5 {[%emt 0:00:02]} 11. Qc4 {[%emt 0:00:32]} Qd7 {[%emt 0:00:22]} 12. Be3 {[%emt 0:00:17]} *

[Event "32nd Panamerican Youth 2022"]
[Site "Montevideo"]
[Date "2022.07.02"]
[Round "9.11"]
[White "Hebbar, Eshaan"]
[Black "Miranda Fernandez, Marcos Manuel"]
[Result "1-0"]
[ECO "D45"]
[WhiteElo "1860"]
[BlackElo "1542"]
[Annotator "NA RC"]
[PlyCount "91"]
[EventDate "2022.06.26"]
[EventType "swiss"]
[EventCountry "URU"]
[SourceTitle "playchess.com"]
[Source "ChessBase"]
[SourceQuality "1"]
[TimeControl "5400+30"]

1. d4 {[%emt 0:00:07]} d5 {[%emt 0:00:05]} 2. c4 {[%emt 0:00:06]} c6 {[%emt 0:00:12]} 3. Nc3 {[%emt 0:00:06]} Nf6 {[%emt 0:00:15]} 4. e3 {[%emt 0:00:07]} e6 {[%emt 0:02:05]} 5. Nf3 {[%emt 0:00:09]} Bd6 {[%emt 0:00:09]} 6. Bd3 {[%emt 0:00:04]} O-O {[%emt 0:01:20]} 7. O-O {[%emt 0:00:07]} Nbd7 {[%emt 0:01:40]} 8. e4 {[%emt 0:00:35]} dxe4 {[%emt 0:00:24]} 9. Nxe4 {[%emt 0:00:10]} Nxe4 {[%emt 0:01:35]} 10. Bxe4 {[%emt 0:00:11]} f5 {[%emt 0:01:24]} 11. Bc2 {[%emt 0:00:38]} Nf6 {[%emt 0:00:46]} 12. Qe2 {[%emt 0:02:16]} Qc7 {[%emt 0:04:19]} 13. h3 {[%emt 0:02:44]} b6 {[%emt 0:13:02]} 14. b3 {[%emt 0:02:02]} Bd7 {[%emt 0:03:54]} 15. Bb2 {[%emt 0:02:19]} Rae8 {[%emt 0:06:59]} 16. Ne5 {[%emt 0:06:59]} Bc8 {[%emt 0:01:16]} 17. Rfd1 {[%emt 0:17:58]} Bb7 {[%emt 0:08:50]} 18. a3 {[%emt 0:07:52]} Nd7 {[%emt 0:15:26]} 19. Nxd7 {[%emt 0:01:10]} Qxd7 {[%emt 0:00:05]} 20. c5 {[%emt 0:00:14]} Bc7 {[%emt 0:00:16]} 21. b4 {[%emt 0:00:19]} b5 {[%emt 0:09:44]} 22. Bb3 {[%emt 0:00:56]} Re7 {[%emt 0:08:16]} 23. Re1 {[%emt 0:00:45]} Rfe8 {[%emt 0:01:14]} 24. Qc2 {[%emt 0:01:49]} Kh8 {[%emt 0:01:53]} 25. Rad1 {[%emt 0:02:19]} Bb8 {[%emt 0:03:41]} 26. Qc3 {[%emt 0:01:40]} Qc7 {[%emt 0:00:52]} 27. g3 {[%emt 0:00:16]} f4 {[%emt 0:02:55]} 28. g4 {[%emt 0:00:25]} a5 {[%emt 0:07:48]} 29. f3 {[%emt 0:00:23]} a4 {[%emt 0:00:18]} 30. Bc2 {[%emt 0:00:34]} Qd7 {[%emt 0:03:53]} 31. Qd3 {[%emt 0:01:03]} g6 {[%emt 0:00:32]} 32. d5+ {[%emt 0:00:24]} e5 {[%emt 0:00:12]} 33. d6 {[%emt 0:00:07]} Re6 {[%emt 0:00:28]} 34. Qe4 {[%emt 0:01:19]} Kg8 {[%emt 0:01:10]} 35. Bb1 {[%emt 0:00:06]} Qd8 {[%emt 0:00:27]} 36. Ba2 {[%emt 0:00:35]} Qh4 {[%emt 0:00:12]} 37. Re2 {[%emt 0:00:16]} Bc8 {[%emt 0:00:46]} 38. Qxe5 {[%emt 0:00:22]} Qg3+ {[%emt 0:00:30]} 39. Rg2 {[%emt 0:00:06]} Qxg2+ {[%emt 0:00:15]} 40. Kxg2 {[%emt 0:00:06]} R8e7 {[%emt 0:00:14]} 41. Qh8+ {[%emt 0:00:39]} Kf7 {[%emt 0:00:06]} 42. Qg7+ {[%emt 0:00:12]} Ke8 {[%emt 0:00:06]} 43. Qg8+ {[%emt 0:00:06]} Kd7 {[%emt 0:00:14]} 44. dxe7+ {[%emt 0:00:15]} Kxe7 {[%emt 0:00:06]} 45. Qd8+ {[%emt 0:00:08]} Kf7 {[%emt 0:00:25]} 46. Qf6+ 1-0

[Event "32nd Panamerican Youth 2022"]
[Site "Montevideo"]
[Date "2022.07.02"]
[Round "9.11"]
[White "Adam, Ernestina"]
[Black "Villegas Ampuero, Consuelo"]
[Result "*"]
[ECO "D45"]
[WhiteElo "1723"]
[BlackElo "1333"]
[Annotator "NA RC"]
[PlyCount "23"]
[EventDate "2022.06.26"]
[EventType "swiss"]
[EventCountry "URU"]
[SourceTitle "playchess.com"]
[Source "ChessBase"]
[SourceQuality "1"]
[TimeControl "5400+30"]

1. d4 {[%emt 0:00:07]} d5 {[%emt 0:00:05]} 2. c4 {[%emt 0:00:06]} c6 {[%emt 0:00:12]} 3. Nc3 {[%emt 0:00:06]} Nf6 {[%emt 0:00:15]} 4. e3 {[%emt 0:00:07]} e6 {[%emt 0:02:05]} 5. Nf3 {[%emt 0:00:09]} Bd6 {[%emt 0:00:09]} 6. Bd3 {[%emt 0:00:04]} O-O {[%emt 0:01:20]} 7. O-O {[%emt 0:00:07]} Nbd7 {[%emt 0:01:40]} 8. e4 {[%emt 0:00:35]} dxe4 {[%emt 0:00:24]} 9. Nxe4 {[%emt 0:00:10]} Nxe4 {[%emt 0:01:35]} 10. Bxe4 {[%emt 0:00:11]} f5 {[%emt 0:01:24]} 11. Bc2 {[%emt 0:00:38]} Nf6 {[%emt 0:00:46]} 12. Qe2 {[%emt 0:02:16]} *

[Event "32nd Panamerican Youth 2022"]
[Site "Montevideo"]
[Date "2022.07.02"]
[Round "9.12"]
[White "Monroy Lopez, Gustavo Adolfo"]
[Black "Tang, Benjamin"]
[Result "0-1"]
[ECO "C01"]
[WhiteElo "1427"]
[BlackElo "1707"]
[Annotator "NA RC"]
[PlyCount "120"]
[EventDate "2022.06.26"]
[EventType "swiss"]
[EventCountry "URU"]
[SourceTitle "playchess.com"]
[Source "ChessBase"]
[SourceQuality "1"]
[TimeControl "5400+30"]

1. e4 {[%emt 0:00:14]} e6 {[%emt 0:00:10]} 2. d4 {[%emt 0:00:20]} d5 {[%emt 0:00:06]} 3. exd5 {[%emt 0:00:38]} exd5 {[%emt 0:00:02]} 4. Bd3 {[%emt 0:00:12]} c5 {[%emt 0:00:38]} 5. c3 {[%emt 0:00:57]} Nf6 {[%emt 0:02:43]} 6. Ne2 {[%emt 0:02:19]} Be7 {[%emt 0:02:00]} 7. O-O {[%emt 0:02:41]} O-O {[%emt 0:00:54]} 8. Bf4 {[%emt 0:01:12]} Nc6 {[%emt 0:01:47]} 9. Nd2 {[%emt 0:02:00]} Re8 {[%emt 0:04:05]} 10. h3 {[%emt 0:02:46]} cxd4 {[%emt 0:08:44]} 11. cxd4 {[%emt 0:02:17]} Bd6 {[%emt 0:01:50]} 12. Bxd6 Qxd6 {[%emt 0:00:03]} 13. Nf3 {[%emt 0:09:49]} Ne4 {[%emt 0:02:17]} 14. Nc3 {[%emt 0:02:50]} Bf5 {[%emt 0:05:37]} 15. Re1 {[%emt 0:01:21]} Rad8 {[%emt 0:01:50]} 16. a3 {[%emt 0:01:40]} Qf6 {[%emt 0:04:33]} 17. Bb5 {[%emt 0:01:36]} Bg6 {[%emt 0:03:29]} 18. Rc1 {[%emt 0:02:46]} Bh5 {[%emt 0:03:26]} 19. Bxc6 {[%emt 0:08:32]} bxc6 {[%emt 0:00:22]} 20. Qd3 {[%emt 0:00:04]} Bxf3 {[%emt 0:01:10]} 21. Qxf3 {[%emt 0:02:47]} Qxd4 {[%emt 0:05:30]} 22. Nxe4 {[%emt 0:00:21]} dxe4 {[%emt 0:03:16]} 23. Qc3 {[%emt 0:00:06]} Qxc3 24. Rxc3 {[%emt 0:00:04]} Rd6 {[%emt 0:02:59]} 25. f3 {[%emt 0:01:30]} f5 {[%emt 0:01:12]} 26. Rc5 {[%emt 0:00:57]} g6 {[%emt 0:01:55]} 27. fxe4 {[%emt 0:01:52]} fxe4 {[%emt 0:02:11]} 28. Rc3 {[%emt 0:00:28]} Ree6 {[%emt 0:03:18]} 29. Rc4 {[%emt 0:01:37]} e3 {[%emt 0:02:41]} 30. Rc3 {[%emt 0:00:17]} Rd2 {[%emt 0:00:44]} 31. Rcxe3 {[%emt 0:00:19]} Rxe3 {[%emt 0:00:37]} 32. Rxe3 {[%emt 0:00:04]} Rxb2 {[%emt 0:00:02]} 33. Re8+ {[%emt 0:00:40]} Kf7 {[%emt 0:02:18]} 34. Rc8 {[%emt 0:00:03]} Rb6 {[%emt 0:03:13]} 35. Rc7+ {[%emt 0:00:04]} Ke6 {[%emt 0:00:10]} 36. Rxa7 {[%emt 0:00:11]} c5 {[%emt 0:01:24]} 37. Rxh7 {[%emt 0:00:24]} Kd5 {[%emt 0:01:26]} 38. Rd7+ {[%emt 0:00:19]} Kc4 {[%emt 0:01:14]} 39. Rc7 {[%emt 0:00:13]} Kd4 {[%emt 0:01:46]} 40. Rd7+ {[%emt 0:01:11]} Kc3 {[%emt 0:00:41]} 41. Kf2 {[%emt 0:00:05]} c4 {[%emt 0:02:03]} 42. g4 {[%emt 0:03:17]} Kb2 43. Rd2+ {[%emt 0:02:46]} Kc1 {[%emt 0:10:42]} 44. Re2 {[%emt 0:02:55]} c3 {[%emt 0:01:41]} 45. Kg3 {[%emt 0:05:24]} c2 {[%emt 0:05:19]} 46. Kf4 {[%emt 0:00:06]} Kd1 {[%emt 0:00:46]} 47. Rxc2 {[%emt 0:04:16]} Kxc2 {[%emt 0:00:02]} 48. Kg5 {[%emt 0:00:07]} Kd3 49. h4 Ke4 {[%emt 0:07:28]} 50. h5 {[%emt 0:00:08]} gxh5 {[%emt 0:00:59]} 51. gxh5 {[%emt 0:00:01]} Rb5+ {[%emt 0:01:05]} 52. Kg6 {[%emt 0:00:14]} Kf4 {[%emt 0:00:47]} 53. h6 {[%emt 0:00:10]} Rb6+ {[%emt 0:00:05]} 54. Kg7 {[%emt 0:02:29]} Kg5 {[%emt 0:00:22]} 55. h7 {[%emt 0:00:10]} Rb7+ {[%emt 0:00:05]} 56. Kg8 {[%emt 0:00:25]} Kg6 {[%emt 0:00:08]} 57. h8=N+ {[%emt 0:01:03]} Kf6 {[%emt 0:00:14]} 58. a4 {[%emt 0:00:35]} Ra7 {[%emt 0:00:22]} 59. a5 {[%emt 0:00:36]} Rb7 {[%emt 0:00:07]} 60. a6 {[%emt 0:02:23]} Ra7 {[%emt 0:00:05]} 0-1

[Event "32nd Panamerican Youth 2022"]
[Site "Montevideo"]
[Date "2022.07.02"]
[Round "9.13"]
[White "Brito Carrascal, Isabela"]
[Black "Chen, Rachel Ruoxuan"]
[Result "1/2-1/2"]
[ECO "C67"]
[WhiteElo "1599"]
[BlackElo "1614"]
[Annotator "NA RC"]
[PlyCount "44"]
[EventDate "2022.06.26"]
[EventType "swiss"]
[EventCountry "URU"]
[SourceTitle "playchess.com"]
[Source "ChessBase"]
[SourceQuality "1"]
[TimeControl "5400+30"]

1. e4 e5 2. Nf3 Nc6 3. Bb5 Nf6 4. O-O Nxe4 5. Bxc6 dxc6 6. Re1 Nd6 7. Nxe5 Be7 8. b3 O-O 9. Bb2 Re8 10. d4 Bf8 11. Nd2 {[%emt 0:26:01]} f6 {[%emt 0:19:17]} 12. Nef3 {[%emt 0:01:03]} Bf5 {[%emt 0:03:41]} 13. Nh4 {[%emt 0:12:45]} Rxe1+ {[%emt 0:06:50]} 14. Qxe1 {[%emt 0:00:06]} Bxc2 {[%emt 0:01:49]} 15. Rc1 {[%emt 0:02:48]} Bg6 {[%emt 0:02:50]} 16. Nxg6 {[%emt 0:00:37]} hxg6 {[%emt 0:07:12]} 17. Qe6+ {[%emt 0:00:12]} Kh7 {[%emt 0:00:10]} 18. Rc3 {[%emt 0:01:43]} Nf5 {[%emt 0:00:11]} 19. Rh3+ {[%emt 0:21:17]} Nh6 {[%emt 0:00:30]} 20. Ne4 {[%emt 0:00:30]} Qd5 {[%emt 0:07:03]} 21. Rxh6+ Kxh6 {[%emt 0:00:00]} 22. Qh3+ {[%emt 0:17:43]} Qh5 1/2-1/2